bitfinex/quotes_BTCUSD_20250221
["timestamp","ask_amount","ask_price","bid_price","bid_amount"]
[1740155883470,0.00317797,98429.0,98425.0,0.10264569]
[1740155883679,0.00317797,98429.0,98428.0,0.152395]
[1740155883904,0.00317797,98429.0,98428.0,0.25504069]
[1740155884545,0.00317797,98429.0,98428.0,0.10264569]
[1740155884716,0.152374,98442.0,98428.0,0.10264569]
[1740155884927,0.203163,98443.0,98438.0,0.08120714]
[1740155885095,0.203142,98454.0,98438.0,0.08120714]
[1740155885475,0.152377,98440.0,98438.0,0.08120714]
[1740155885652,0.1508505,98456.0,98438.0,0.08120714]
[1740155885882,0.472871,98444.0,98438.0,0.08120714]
[1740155886092,0.3205,98444.0,98442.0,0.152373]
[1740155886508,0.3205,98444.0,98438.0,0.18385283]
[1740155886939,0.3205,98444.0,98438.0,0.18585283]
[1740155887157,0.3215,98444.0,98438.0,0.18385283]
[1740155887365,0.152378,98439.0,98438.0,0.08120714]
[1740155887984,0.152378,98439.0,98438.0,0.08220714]
[1740155888194,0.0031784,98443.0,98442.0,0.152373]
[1740155888667,0.0031784,98443.0,98442.0,0.25623762]
[1740155888910,0.00953529,98443.0,98442.0,0.26955954]
[1740155889106,0.00635689,98443.0,98442.0,0.26955954]
[1740155889547,0.00635689,98443.0,98442.0,0.28203463]
[1740155889998,0.00635689,98443.0,98442.0,0.27703463]
[1740155890210,0.00635689,98443.0,98442.0,0.28603463]
[1740155890442,0.152334,98468.0,98455.0,0.152353]
[1740155890648,0.152333,98469.0,98455.0,0.25499869]
[1740155890881,0.203101,98473.0,98455.0,0.25499869]
[1740155891080,0.203106,98471.0,98455.0,0.25499869]
[1740155891308,0.152332,98469.0,98455.0,0.25499869]
[1740155891957,0.0018505,98456.0,98455.0,0.25999869]
[1740155892162,0.0018505,98456.0,98455.0,0.26699869]
[1740155898840,0.0018505,98456.0,98455.0,0.41173954]
[1740155899077,5e-07,98456.0,98455.0,0.84433954]
[1740155899326,0.8573,98511.0,98495.0,0.15229]
[1740155899327,0.152276,98505.0,98495.0,0.15229]
[1740155899585,0.00012986,98503.0,98490.0,0.12990534]
[1740155899828,0.00012986,98503.0,98502.0,0.152281]
[1740155900561,0.00012986,98503.0,98502.0,0.25492669]
[1740155901075,0.00112986,98503.0,98502.0,0.25492669]
[1740155901511,0.00012986,98503.0,98502.0,0.25492669]
[1740155902349,0.00012986,98503.0,98502.0,0.25892669]
[1740155902761,0.00112986,98503.0,98502.0,0.25892669]
[1740155903205,0.00012986,98503.0,98502.0,0.25892669]
[1740155903583,0.00012986,98503.0,98502.0,0.25992669]
[1740155906002,0.00012986,98503.0,98502.0,0.33792669]
[1740155906414,0.00012986,98503.0,98502.0,0.54766754]
[1740155907103,0.00012986,98503.0,98502.0,0.72066754]
[1740155907468,0.00012986,98503.0,98502.0,0.72166754]
[1740155907877,0.00012986,98503.0,98502.0,0.71766754]
[1740155908102,0.00012986,98503.0,98502.0,0.72166754]
[1740155908348,0.00012986,98503.0,98502.0,0.54766754]
[1740155908537,0.00012986,98503.0,98502.0,5.34855654]
[1740155908739,0.00012986,98503.0,98502.0,4.99646754]
[1740155908944,0.00012986,98503.0,98502.0,4.92616754]
[1740155909199,0.00012986,98503.0,98502.0,4.76036754]
[1740155909200,0.00112986,98503.0,98502.0,4.76036754]
[1740155910173,0.3205,98547.0,98527.0,0.231642]
[1740155910420,0.3205,98547.0,98527.0,0.33428769]
[1740155910660,0.0008504,98549.0,98527.0,0.33428769]
[1740155911190,0.0008504,98549.0,98527.0,0.34882854]
[1740155911430,0.0008504,98549.0,98527.0,0.47613568]
[1740155912541,0.00091653,98528.0,98527.0,0.48313568]
[1740155912794,0.00091653,98528.0,98527.0,0.49074649]
[1740155913062,0.00091653,98528.0,98527.0,0.49674649]
[1740155913308,0.00091653,98528.0,98527.0,0.35670564]
[1740155918235,0.00091653,98528.0,98527.0,0.11564569]
[1740155918985,0.15315653,98528.0,98527.0,0.013]
[1740155919920,0.152253,98520.0,98510.0,0.12990534]
[1740155920135,0.15225,98522.0,98511.0,0.25491169]
[1740155920340,0.00091653,98528.0,98511.0,0.10264569]
[1740155920550,0.152248,98524.0,98511.0,0.10264569]
[1740155920756,0.152249,98523.0,98511.0,0.10264569]
[1740155921162,0.00409232,98528.0,98511.0,0.10264569]
[1740155921374,0.00409232,98528.0,98512.0,0.152264]
[1740155921591,0.00409232,98528.0,98513.0,0.10264569]
[1740155921802,0.152248,98524.0,98513.0,0.10264569]
[1740155922197,0.00409232,98528.0,98513.0,0.10264569]
[1740155922198,0.00091653,98528.0,98513.0,0.10264569]
[1740155922549,0.152252,98521.0,98513.0,0.10264569]
[1740155922879,0.00091653,98528.0,98496.0,0.08120714]
[1740155923079,0.152262,98514.0,98513.0,0.003]
[1740155923345,0.152262,98514.0,98513.0,0.007]
[1740155923537,0.203014,98516.0,98499.0,0.25492969]
[1740155923744,0.152272,98508.0,98499.0,0.10264569]
[1740155923948,0.0753,98527.0,98513.0,0.01]
[1740155924155,0.00091653,98528.0,98517.0,0.12990534]
[1740155924357,0.20299,98527.0,98513.0,0.004]
[1740155924558,0.00091653,98528.0,98513.0,0.011]
[1740155924763,0.00091653,98528.0,98514.0,0.203016]
[1740155924983,0.152246,98525.0,98515.0,0.152259]
[1740155925201,0.355233,98527.0,98516.0,0.152259]
[1740155925409,0.00091653,98528.0,98514.0,0.01041684]
[1740155925616,0.152245,98525.0,98515.0,0.152259]
[1740155925820,0.20299,98527.0,98514.0,0.203016]
[1740155926062,0.00091653,98528.0,98514.0,0.01009534]
[1740155926284,0.001,98525.0,98519.0,0.152254]
[1740155926492,0.001,98525.0,98519.0,0.25489969]
[1740155926693,0.00091653,98528.0,98519.0,0.25489969]
[1740155926894,0.00091653,98528.0,98519.0,0.10264569]
[1740155927314,0.00291653,98528.0,98519.0,0.10264569]
[1740155927522,0.00291653,98528.0,98527.0,0.152242]
[1740155928095,0.00291653,98528.0,98520.0,0.10264569]
[1740155928296,0.00291653,98528.0,98524.0,0.152245]
[1740155928494,0.00291653,98528.0,98524.0,0.25489169]
[1740155928656,0.00291653,98528.0,98524.0,0.10264569]
[1740155928858,0.00091653,98528.0,98527.0,0.152242]
[1740155929286,0.00191653,98528.0,98527.0,0.25488769]
[1740155929723,0.00091653,98528.0,98527.0,0.25888769]
[1740155930078,0.00091653,98528.0,98527.0,0.25988769]
[1740155930488,0.00091653,98528.0,98527.0,0.25588769]
[1740155930700,0.00091653,98528.0,98527.0,0.25988769]
[1740155931110,0.00091653,98528.0,98527.0,0.25588769]
[1740155931338,0.00091653,98528.0,98527.0,0.26288769]
[1740155931530,0.00091653,98528.0,98527.0,0.26188769]
[1740155931726,0.00091653,98528.0,98527.0,0.34088769]
[1740155932000,0.00091653,98528.0,98527.0,0.35642854]
[1740155932221,0.00091653,98528.0,98527.0,0.55342854]
[1740155932445,5.3e-07,98528.0,98527.0,4.31752854]
[1740155932696,5.3e-07,98528.0,98527.0,0.57242854]
[1740155932904,5.3e-07,98528.0,98527.0,0.57842854]
[1740155933328,5.3e-07,98528.0,98527.0,0.56542854]
[1740155933592,0.0008504,98550.0,98527.0,0.56542854]
[1740155933593,0.0008504,98550.0,98548.0,0.15221]
[1740155933798,0.0008504,98550.0,98548.0,1.26933732]
[1740155933799,0.00091632,98549.0,98548.0,1.26933732]
[1740155934854,0.00091632,98549.0,98548.0,1.39733732]
[1740155936122,0.00091632,98549.0,98548.0,1.40333732]
[1740155936994,0.00091632,98549.0,98548.0,1.41033732]
[1740155938803,0.00091632,98549.0,98548.0,1.43017841]
[1740155939448,0.00091632,98549.0,98548.0,6.39960826]
[1740155939962,0.00091632,98549.0,98548.0,6.41960826]
[1740155940162,0.00091632,98549.0,98548.0,6.41260826]
[1740155940363,0.00091632,98549.0,98548.0,6.41960826]
[1740155940730,0.00091632,98549.0,98548.0,6.41260826]
[1740155940939,0.00091632,98549.0,98548.0,6.41360826]
[1740155941347,0.00091632,98549.0,98548.0,6.41860826]
[1740155941581,0.0002,98569.0,98568.0,0.24511985]
[1740155941796,0.00063261,98569.0,98568.0,2.45808302]
[1740155942200,0.00063261,98569.0,98568.0,1.44345431]
[1740155943020,0.00063261,98569.0,98568.0,1.45045431]
[1740155943637,0.00063261,98569.0,98568.0,1.467563]
[1740155944483,0.00063261,98569.0,98568.0,1.453563]
[1740155944683,0.00063261,98569.0,98568.0,1.36062215]
[1740155944888,0.00063261,98569.0,98568.0,1.37462215]
[1740155945531,0.00063261,98569.0,98568.0,0.36014052]
[1740155946153,0.00063261,98569.0,98568.0,0.35314052]
[1740155946359,0.00063261,98569.0,98568.0,0.36014052]
[1740155946568,0.00148221,98569.0,98568.0,0.35314052]
[1740155946987,0.00148221,98569.0,98568.0,0.36014052]
[1740155947192,0.00148221,98569.0,98568.0,0.12675438]
[1740155947610,0.00148221,98569.0,98568.0,0.27893338]
[1740155948192,0.00148221,98569.0,98568.0,0.27193338]
[1740155948348,0.00148221,98569.0,98568.0,0.27793338]
[1740155949018,0.00148221,98569.0,98568.0,0.26493338]
[1740155949216,0.00148221,98569.0,98568.0,0.26893338]
[1740155949442,0.00148221,98569.0,98568.0,0.29047423]
[1740155949644,0.00148221,98569.0,98568.0,0.28347423]
[1740155950019,0.00148221,98569.0,98568.0,0.29047423]
[1740155950230,0.00148221,98569.0,98568.0,1.52855586]
[1740155950402,0.00148221,98569.0,98568.0,1.57815586]
[1740155950595,0.00148221,98569.0,98568.0,6.467252]
[1740155950821,0.00148221,98569.0,98568.0,6.466252]
[1740155951461,0.00148221,98569.0,98568.0,6.188063]
[1740155951616,0.00148221,98569.0,98568.0,6.195063]
[1740155951817,0.00148221,98569.0,98568.0,5.766063]
[1740155952036,0.00148221,98569.0,98568.0,4.094463]
[1740155952227,0.00148221,98569.0,98568.0,4.101463]
[1740155952433,0.00148221,98569.0,98568.0,4.094463]
[1740155952987,0.00148221,98569.0,98568.0,4.101463]
[1740155955001,0.0008502,98573.0,98572.0,0.302173]
[1740155955202,0.0008501,98579.0,98578.0,0.31670385]
[1740155955403,0.00097981,98579.0,98578.0,1.43383117]
[1740155955651,0.00097981,98579.0,98578.0,6.31992731]
[1740155956673,3e-07,98589.0,98588.0,0.302148]
[1740155956835,3e-07,98589.0,98588.0,2.52965202]
[1740155958003,0.00076058,98591.0,98590.0,0.152145]
[1740155958207,0.00076058,98591.0,98590.0,0.40479069]
[1740155958634,0.00076058,98591.0,98590.0,0.41933154]
[1740155959268,0.00076058,98591.0,98590.0,0.42633154]
[1740155959883,0.00076058,98591.0,98590.0,0.26179069]
[1740155961128,0.00076058,98591.0,98590.0,0.26879069]
[1740155961681,0.00076058,98591.0,98590.0,0.25479069]
[1740155961888,0.00076058,98591.0,98590.0,0.26179069]
[1740155962083,0.00076058,98591.0,98590.0,0.26879069]
[1740155962288,0.00076058,98591.0,98590.0,0.26179069]
[1740155962707,0.00076058,98591.0,98590.0,0.26879069]
[1740155963329,0.00076058,98591.0,98590.0,0.26179069]
[1740155963528,0.00076058,98591.0,98590.0,0.26879069]
[1740155965539,0.00076058,98591.0,98590.0,0.26179069]
[1740155965962,0.00076058,98591.0,98590.0,0.26879069]
[1740155966159,0.00076058,98591.0,98590.0,0.26179069]
[1740155967242,0.00076058,98591.0,98590.0,0.25479069]
[1740155967448,0.00076058,98591.0,98590.0,0.26179069]
[1740155967669,0.00076058,98591.0,98590.0,0.10964569]
[1740155967852,0.00076058,98591.0,98590.0,0.26179069]
[1740155968065,0.00076058,98591.0,98590.0,0.11664569]
[1740155968292,0.00076058,98591.0,98590.0,0.26879069]
[1740155968503,0.00076058,98591.0,98590.0,0.26179069]
[1740155968945,0.00076058,98591.0,98590.0,0.26879069]
[1740155969181,0.00710708,98591.0,98590.0,0.26179069]
[1740155969872,0.00710708,98591.0,98590.0,0.26579069]
[1740155971538,0.00076058,98591.0,98590.0,0.26579069]
[1740155971975,0.00076058,98591.0,98590.0,0.28033154]
[1740155972346,0.00076058,98591.0,98590.0,0.35743154]
[1740155973391,0.00076058,98591.0,98590.0,0.28033154]
[1740155974434,0.00076058,98591.0,98590.0,1.29481317]
[1740155974666,0.00076058,98591.0,98590.0,1.28027232]
[1740155975112,0.00076058,98591.0,98590.0,1.29481317]
[1740155979408,0.00076058,98591.0,98590.0,1.29081317]
[1740155979617,0.00076058,98591.0,98590.0,1.29781317]
[1740155981017,0.00076058,98591.0,98590.0,1.31782609]
[1740155981214,0.00076058,98591.0,98590.0,1.31082609]
[1740155981414,0.00076058,98591.0,98590.0,1.29628524]
[1740155981664,0.00076058,98591.0,98590.0,1.30328524]
[1740155983314,0.00076058,98591.0,98590.0,1.31782609]
[1740155984688,5.8e-07,98591.0,98590.0,2.50942609]
[1740155984887,9.01e-05,98594.0,98593.0,0.30214]
[1740155985092,8e-07,98602.0,98601.0,0.302128]
[1740155985430,8e-07,98602.0,98601.0,2.44842488]
[1740155985642,0.0008502,98628.0,98617.0,0.202804]
[1740155985840,0.0008502,98628.0,98623.0,0.152094]
[1740155986041,0.00097971,98624.0,98623.0,0.25473969]
[1740155986513,0.00097971,98624.0,98623.0,0.26518313]
[1740155988034,0.00097971,98624.0,98623.0,0.27118313]
[1740155988229,0.00097971,98624.0,98623.0,0.28572398]
[1740155988435,0.00097971,98624.0,98623.0,0.44272398]
[1740155988686,0.00097971,98624.0,98623.0,0.42972398]
[1740155988890,0.00097971,98624.0,98623.0,0.43572398]
[1740155989253,8e-07,98648.0,98647.0,0.00754099]
[1740155989459,0.0485,98686.0,98656.0,0.302043]
[1740155989695,0.0485,98686.0,98656.0,3.78972954]
[1740155989696,0.09108134,98657.0,98656.0,3.78972954]
[1740155989901,0.00012966,98657.0,98656.0,3.82512954]
[1740155990719,0.00012966,98657.0,98656.0,3.86172894]
[1740155991135,0.00012966,98657.0,98656.0,3.83212954]
[1740155991444,0.00012966,98657.0,98656.0,0.89402954]
[1740155991767,0.00012966,98657.0,98656.0,0.90102954]
[1740155992141,0.00012966,98657.0,98656.0,0.89402954]
[1740155992351,0.00012966,98657.0,98656.0,0.41168869]
[1740155992488,0.00012966,98657.0,98656.0,0.26168869]
[1740155992689,0.00012966,98657.0,98656.0,0.10964569]
[1740155992895,0.00012966,98657.0,98656.0,0.11086195]
[1740155993095,0.00012966,98657.0,98656.0,0.20539368]
[1740155993299,0.00012966,98657.0,98656.0,0.21239368]
[1740155993525,0.00012966,98657.0,98656.0,0.35539368]
[1740155994221,0.00012966,98657.0,98656.0,0.34839368]
[1740155994452,0.00012966,98657.0,98656.0,0.35539368]
[1740155994646,0.00098006,98657.0,98656.0,0.34839368]
[1740155994818,0.00098006,98657.0,98656.0,0.35539368]
[1740155995016,0.00098006,98657.0,98656.0,0.36239368]
[1740155995254,0.00098006,98657.0,98656.0,0.47869368]
[1740155995664,0.00098006,98657.0,98656.0,0.48569368]
[1740155995866,0.00098006,98657.0,98656.0,0.44059368]
[1740155996223,0.00098006,98657.0,98656.0,0.43359368]
[1740155996754,0.00098006,98657.0,98656.0,0.44059368]
[1740155997153,0.00098006,98657.0,98656.0,0.34785283]
[1740155997361,0.00098006,98657.0,98656.0,0.26664569]
[1740155997620,0.00098006,98657.0,98656.0,0.11664569]
[1740155997830,0.00098006,98657.0,98656.0,0.26868869]
[1740155998686,0.00098006,98657.0,98656.0,0.26168869]
[1740155998911,0.00098006,98657.0,98656.0,0.26868869]
[1740155999334,0.00098006,98657.0,98656.0,0.26168869]
[1740155999755,0.00098006,98657.0,98656.0,0.26868869]
[1740155999968,0.00098006,98657.0,98656.0,0.26168869]
[1740156000178,0.00098006,98657.0,98656.0,0.26868869]
[1740156001944,0.00098006,98657.0,98656.0,4.38822954]
[1740156002186,0.00098006,98657.0,98656.0,5.31811854]
[1740156003422,0.00098006,98657.0,98656.0,1.36152954]
[1740156004483,0.00088938,98657.0,98656.0,1.36152954]
[1740156004844,0.00088938,98657.0,98656.0,1.32052954]
[1740156005053,0.00088938,98657.0,98656.0,0.78822954]
[1740156005472,0.00088938,98657.0,98656.0,0.43322954]
[1740156005696,0.00088938,98657.0,98656.0,0.26868869]
[1740156007159,0.00088938,98657.0,98656.0,0.014]
[1740156007581,0.00088938,98657.0,98656.0,0.166043]
[1740156007781,0.00088938,98657.0,98656.0,0.159043]
[1740156007977,0.00088938,98657.0,98656.0,0.152043]
[1740156008179,0.00088938,98657.0,98656.0,0.154043]
[1740156008410,0.00088938,98657.0,98656.0,0.10464569]
[1740156008619,0.00088938,98657.0,98656.0,0.10964569]
[1740156008841,0.00088938,98657.0,98656.0,0.10764569]
[1740156009059,0.00088938,98657.0,98656.0,0.10964569]
[1740156009992,0.00088938,98657.0,98656.0,0.10464569]
[1740156010629,0.00088938,98657.0,98656.0,0.10264569]
[1740156010835,0.00088938,98657.0,98656.0,0.11464569]
[1740156012135,0.00088938,98657.0,98656.0,0.012]
[1740156013303,0.00406061,98657.0,98656.0,0.012]
[1740156013504,0.15610161,98657.0,98656.0,0.012]
[1740156013714,0.00406061,98657.0,98656.0,0.012]
[1740156014376,0.00406061,98657.0,98656.0,0.10964569]
[1740156014584,0.00406061,98657.0,98656.0,0.10264569]
[1740156015029,0.00406061,98657.0,98656.0,0.003]
[1740156015178,0.00406061,98657.0,98649.0,0.0017]
[1740156015406,0.00406061,98657.0,98651.0,0.15205]
[1740156015566,0.08076061,98657.0,98656.0,0.005]
[1740156016672,0.08076061,98657.0,98656.0,0.012]
[1740156016789,0.08076061,98657.0,98656.0,0.005]
[1740156017007,0.152052,98650.0,98649.0,0.0017]
[1740156017236,0.152052,98650.0,98649.0,0.0037]
[1740156017444,0.202724,98656.0,98649.0,0.0037]
[1740156017645,0.202724,98656.0,98649.0,0.0017]
[1740156017899,0.202726,98655.0,98649.0,0.0017]
[1740156018078,0.152051,98651.0,98649.0,0.0017]
[1740156018277,0.152051,98651.0,98649.0,0.0067]
[1740156018719,0.0467,98650.0,98649.0,0.0067]
[1740156019530,0.0467,98650.0,98649.0,0.0017]
[1740156019910,0.0467,98650.0,98649.0,0.0047]
[1740156020107,0.0467,98650.0,98649.0,0.0017]
[1740156020316,0.001,98655.0,98649.0,0.01193384]
[1740156020569,0.001,98655.0,98649.0,0.01593384]
[1740156020775,0.15293138,98657.0,98649.0,0.01593384]
[1740156020977,0.00088938,98657.0,98649.0,0.01693384]
[1740156021284,0.00088938,98657.0,98656.0,0.152043]
[1740156022948,0.00088938,98657.0,98656.0,0.25468869]
[1740156023363,0.00188938,98657.0,98656.0,0.26922954]
[1740156023754,0.00188938,98657.0,98656.0,0.27322954]
[1740156023957,0.00088938,98657.0,98656.0,0.41922954]
[1740156024154,0.00088938,98657.0,98656.0,0.42422954]
[1740156024359,0.00088938,98657.0,98656.0,0.43122954]
[1740156026186,0.00088938,98657.0,98656.0,0.41668869]
[1740156026392,0.00088938,98657.0,98656.0,0.26668869]
[1740156028473,0.00088938,98657.0,98656.0,5.08611854]
[1740156028678,0.00088938,98657.0,98656.0,5.09102954]
[1740156029514,0.00088938,98657.0,98656.0,5.08602954]
[1740156029695,0.00088938,98657.0,98656.0,5.07902954]
[1740156029927,0.00088938,98657.0,98656.0,5.09302954]
[1740156030335,0.00088938,98657.0,98656.0,5.07902954]
[1740156030513,0.00088938,98657.0,98656.0,5.08602954]
[1740156031180,0.00088938,98657.0,98656.0,0.70112954]
[1740156031397,0.00088938,98657.0,98656.0,0.42622954]
[1740156031626,0.00088938,98657.0,98656.0,0.26168869]
[1740156032687,0.00088938,98657.0,98656.0,0.26868869]
[1740156032993,0.00088938,98657.0,98656.0,0.25468869]
[1740156033227,0.00088938,98657.0,98656.0,0.10764569]
[1740156033410,0.15293038,98657.0,98656.0,0.012]
[1740156033552,0.00088938,98657.0,98649.0,0.0017]
[1740156033747,0.00088938,98657.0,98649.0,0.10434569]
[1740156033970,0.00088938,98657.0,98656.0,0.005]
[1740156033971,0.15293138,98657.0,98656.0,0.005]
[1740156034181,0.00088938,98657.0,98656.0,0.005]
[1740156034486,0.00088938,98657.0,98656.0,0.01]
[1740156034946,0.05643228,98657.0,98656.0,0.01]
[1740156035762,0.152052,98650.0,98649.0,0.0017]
[1740156036172,0.152052,98650.0,98649.0,0.0047]
[1740156036418,0.152052,98650.0,98649.0,0.0107]
[1740156036596,0.152052,98650.0,98649.0,0.0077]
[1740156036791,0.152052,98650.0,98649.0,0.0017]
[1740156036938,0.05743228,98657.0,98649.0,0.0017]
[1740156037145,0.05743228,98657.0,98656.0,0.152043]
[1740156037379,0.00723228,98657.0,98656.0,0.25468869]
[1740156039188,0.00088938,98657.0,98656.0,0.25468869]
[1740156039395,0.00188938,98657.0,98656.0,0.25468869]
[1740156039607,0.00188938,98657.0,98656.0,0.007]
[1740156039824,0.152049,98653.0,98651.0,0.08120714]
[1740156040052,0.00088938,98657.0,98656.0,0.006]
[1740156040258,0.00088938,98657.0,98656.0,0.004]
[1740156040676,0.00088938,98657.0,98656.0,0.006]
[1740156040873,0.00088938,98657.0,98656.0,0.10864569]
[1740156042545,0.00088938,98657.0,98656.0,0.11264569]
[1740156043195,0.00088938,98657.0,98656.0,0.11564569]
[1740156043643,0.00088938,98657.0,98656.0,0.1968619]
[1740156043851,0.00088938,98657.0,98656.0,0.19840275]
[1740156044057,0.00088938,98657.0,98656.0,0.19318654]
[1740156044862,0.00088938,98657.0,98656.0,0.19440256]
[1740156045053,0.00088938,98657.0,98656.0,0.19318654]
[1740156045273,0.00088938,98657.0,98656.0,0.20140256]
[1740156045416,0.00088938,98657.0,98656.0,0.20718654]
[1740156045598,0.00088938,98657.0,98656.0,0.20018654]
[1740156046235,0.00088938,98657.0,98656.0,0.20718654]
[1740156046660,0.00088938,98657.0,98656.0,0.19318654]
[1740156047026,0.00088938,98657.0,98656.0,0.20718654]
[1740156050003,0.00088938,98657.0,98656.0,5.16207554]
[1740156050217,3.8e-07,98657.0,98656.0,5.16207554]
[1740156050547,3.8e-07,98657.0,98656.0,0.35718654]
[1740156051577,0.0008505,98678.0,98667.0,0.302026]
[1740156051786,0.0012817,98668.0,98667.0,2.44832288]
[1740156051998,0.0012817,98668.0,98667.0,2.49792288]
[1740156052210,0.0008505,98678.0,98677.0,0.302011]
[1740156052421,0.0008505,98678.0,98677.0,2.44830788]
[1740156052640,5e-07,98678.0,98677.0,7.33440402]
[1740156052845,5e-07,98678.0,98677.0,2.60791502]
[1740156053606,5e-07,98678.0,98677.0,2.61491502]
[1740156053827,5e-07,98678.0,98677.0,2.62191502]
[1740156054029,5e-07,98678.0,98677.0,2.74332502]
[1740156054238,3e-07,98689.0,98688.0,0.301994]
[1740156054453,0.00012985,98689.0,98688.0,2.34564519]
[1740156055170,0.00012985,98689.0,98688.0,2.44829088]
[1740156055374,0.00012985,98689.0,98688.0,2.45529088]
[1740156056386,0.00012985,98689.0,98688.0,7.17389088]
[1740156056598,0.00012985,98689.0,98688.0,7.18789088]
[1740156056801,0.00012985,98689.0,98688.0,7.18831216]
[1740156057004,0.00012985,98689.0,98688.0,7.10391216]
[1740156057212,0.00012985,98689.0,98688.0,6.04951216]
[1740156057421,0.00012985,98689.0,98688.0,6.04251216]
[1740156058653,0.00012985,98689.0,98688.0,2.45571216]
[1740156058869,0.00012985,98689.0,98688.0,7.26760116]
[1740156059309,0.00012985,98689.0,98688.0,7.26060116]
[1740156059530,0.00012985,98689.0,98688.0,7.26760116]
[1740156059735,0.00012985,98689.0,98688.0,3.88291216]
[1740156060187,0.00012985,98689.0,98688.0,3.87591216]
[1740156060411,0.00012985,98689.0,98688.0,1.46859941]
[1740156060622,0.00012985,98689.0,98688.0,1.45405856]
[1740156060829,0.00012985,98689.0,98688.0,6.26594756]
[1740156061473,0.00012985,98689.0,98688.0,5.29079941]
[1740156062088,0.00012985,98689.0,98688.0,5.28379941]
[1740156062295,3.5e-07,98690.0,98689.0,0.31653285]
[1740156062506,3.5e-07,98690.0,98689.0,1.43380725]
[1740156062913,0.046,98727.0,98699.0,0.16651785]
[1740156063191,0.046,98727.0,98699.0,1.35904517]
[1740156063395,0.0002,98729.0,98722.0,0.151941]
[1740156063602,0.0002,98729.0,98722.0,0.25458669]
[1740156063603,0.00097973,98723.0,98722.0,0.25458669]
[1740156063810,0.018721,98739.0,98723.0,0.202587]
[1740156064018,0.018721,98739.0,98737.0,0.151918]
[1740156064879,0.0768,98744.0,98743.0,0.151909]
[1740156065106,0.8573,98754.0,98751.0,0.151897]
[1740156065577,0.0755,98767.0,98755.0,0.151891]
[1740156065790,0.0755,98767.0,98755.0,0.25453669]
[1740156066000,0.00097951,98756.0,98755.0,0.25453669]
[1740156067294,0.00097951,98756.0,98755.0,0.25753669]
[1740156067502,0.00097951,98756.0,98755.0,0.25953669]
[1740156067713,0.00097951,98756.0,98755.0,0.25753669]
[1740156068584,0.00097951,98756.0,98755.0,0.25453669]
[1740156068801,0.00097951,98756.0,98755.0,0.26053669]
[1740156069013,0.00097951,98756.0,98755.0,0.26753669]
[1740156069447,0.00097951,98756.0,98755.0,0.26053669]
[1740156069656,0.00097951,98756.0,98755.0,0.25453669]
[1740156069835,0.00097951,98756.0,98755.0,0.26653669]
[1740156070077,0.00097951,98756.0,98755.0,0.25953669]
[1740156070283,0.00097951,98756.0,98755.0,0.25453669]
[1740156070564,0.00097951,98756.0,98755.0,0.26153669]
[1740156070772,0.00097951,98756.0,98755.0,0.25453669]
[1740156070983,0.00097951,98756.0,98755.0,0.26153669]
[1740156071372,0.00097951,98756.0,98755.0,0.158891]
[1740156071724,0.00097951,98756.0,98755.0,0.161891]
[1740156072182,0.00097951,98756.0,98755.0,0.158891]
[1740156072355,0.00097951,98756.0,98755.0,0.006]
[1740156072558,0.00097951,98756.0,98755.0,0.013]
[1740156072784,0.08327951,98756.0,98755.0,0.013]
[1740156072937,0.08327951,98756.0,98755.0,0.006]
[1740156073360,0.00097951,98756.0,98755.0,0.006]
[1740156073558,0.00097951,98756.0,98755.0,0.007]
[1740156073778,0.00097951,98756.0,98750.0,0.151897]
[1740156073980,0.00097951,98756.0,98748.0,0.151901]
[1740156074256,0.00097951,98756.0,98755.0,0.005]
[1740156074890,0.00097951,98756.0,98755.0,0.008]
[1740156075097,0.15286851,98756.0,98755.0,0.008]
[1740156075423,0.00097951,98756.0,98755.0,0.003]
[1740156076256,0.00097951,98756.0,98755.0,0.008]
[1740156076451,0.15286851,98756.0,98755.0,0.008]
[1740156077311,0.00097951,98756.0,98755.0,0.008]
[1740156078062,0.15286851,98756.0,98755.0,0.008]
[1740156078327,0.00414756,98756.0,98755.0,0.008]
[1740156079359,0.15603656,98756.0,98755.0,0.008]
[1740156079966,0.00414756,98756.0,98755.0,0.008]
[1740156080130,0.15603656,98756.0,98755.0,0.008]
[1740156080574,0.00414756,98756.0,98755.0,0.008]
[1740156080954,0.00414756,98756.0,98755.0,0.159891]
[1740156081840,0.00414756,98756.0,98755.0,0.156891]
[1740156082209,0.00414756,98756.0,98755.0,0.151891]
[1740156082405,0.00414756,98756.0,98755.0,0.156891]
[1740156082643,0.00414756,98756.0,98755.0,0.25953669]
[1740156082853,0.00414756,98756.0,98755.0,0.26253669]
[1740156083231,0.00414756,98756.0,98755.0,0.25753669]
[1740156083641,0.00414756,98756.0,98755.0,0.26453669]
[1740156084015,0.00414756,98756.0,98755.0,0.26153669]
[1740156084186,0.00414756,98756.0,98755.0,0.26653669]
[1740156084876,0.00414756,98756.0,98755.0,0.25453669]
[1740156085034,0.00414756,98756.0,98755.0,0.26153669]
[1740156085238,0.00097951,98756.0,98755.0,0.26853669]
[1740156085543,0.00097951,98756.0,98755.0,0.26153669]
[1740156086237,0.00097951,98756.0,98755.0,0.26853669]
[1740156087790,0.00097951,98756.0,98755.0,0.26153669]
[1740156088049,0.00097951,98756.0,98755.0,0.26853669]
[1740156088282,0.00097951,98756.0,98755.0,0.26153669]
[1740156088934,0.00097951,98756.0,98755.0,0.26853669]
[1740156089339,0.00414743,98756.0,98755.0,0.25453669]
[1740156089558,0.00414743,98756.0,98755.0,0.26153669]
[1740156089767,0.00414743,98756.0,98755.0,0.004]
[1740156089983,0.15603643,98756.0,98755.0,0.004]
[1740156090203,0.28363643,98756.0,98755.0,0.011]
[1740156091030,0.00414743,98756.0,98755.0,0.011]
[1740156091241,0.00414743,98756.0,98755.0,0.162891]
[1740156091451,0.00414743,98756.0,98755.0,0.151891]
[1740156091657,0.00414743,98756.0,98755.0,0.161891]
[1740156092125,0.00414743,98756.0,98755.0,0.151891]
[1740156092487,0.00414743,98756.0,98755.0,0.154891]
[1740156093030,0.00414743,98756.0,98755.0,0.156891]
[1740156093253,0.00414743,98756.0,98755.0,0.151891]
[1740156093479,0.00414743,98756.0,98755.0,0.160891]
[1740156094599,0.00414743,98756.0,98755.0,0.156891]
[1740156094802,0.00414743,98756.0,98755.0,0.157891]
[1740156095008,0.00414743,98756.0,98755.0,0.164891]
[1740156095156,0.00414743,98756.0,98755.0,0.151891]
[1740156095570,0.00414743,98756.0,98755.0,0.155891]
[1740156095944,0.00414743,98756.0,98755.0,0.151891]
[1740156096350,0.00414743,98756.0,98755.0,0.156891]
[1740156097899,0.00414743,98756.0,98755.0,0.170891]
[1740156098103,0.00414743,98756.0,98755.0,0.172891]
[1740156098309,0.00414743,98756.0,98755.0,0.158891]
[1740156098646,0.00414743,98756.0,98755.0,0.161891]